Workbook

Sheet 기본작업-1
A1: 배드민턴센터 회원명단
A3: 회원명 | B3: 성별 | C3: 회원코드 | D3: 수강일 | E3: 연락처 | F3: 납입회비
A4: 박영민 | B4: 남 | C4: YM-1035 | D4: 월,수,금 | E4: 010-6954-8697 | F4: 120000
A5: 조호준 | B5: 남 | C5: HJ-1068 | D5: 화,목,토 | E5: 010-6847-6833 | F5: 100000
A6: 윤미나 | B6: 여 | C6: MN-1086 | D6: 화,목,토 | E6: 010-9853-2381 | F6: 90000
A7: 김은소 | B7: 여 | C7: ES-1268 | D7: 월,수,금 | E7: 010-7895-5552 | F7: 120000
A8: 민나영 | B8: 여 | C8: NY-2305 | D8: 화,목,토 | E8: 010-3218-9987 | F8: 120000
A9: 김진성 | B9: 남 | C9: JS-2048 | D9: 월,수,금 | E9: 010-5874-6985 | F9: 110000

Sheet 기본작업-2
A1: 상공회사 사원관리현황
A3: 부서 | B3: 사원명 | C3: 성별 | D3: 직책 | E3: 학력 | F3: 資格證 | G3: 입사년도 | H3: 연봉
A4: 관리부 | B4: 허미진 | C4: 여 | D4: 과장 | E4: 대학원졸 | F4: 정보처리 | G4: 2005 | H4: 4600
B5: 무기한 | C5: 남 | D5: 대리 | E5: 대졸 | F5: 워드프로세서 | G5: 2009 | H5: 3600
B6: 강하지 | C6: 남 | D6: 사원 | E6: 고졸 | F6: 컴퓨터활용능력 | G6: 2012 | H6: 2400
A7: 기획부 | B7: 고요한 | C7: 남 | D7: 과장 | E7: 고졸 | F7: 워드프로세서 | G7: 2004 | H7: 4800
B8: 이백원 | C8: 남 | D8: 대리 | E8: 대졸 | F8: 정보처리 | G8: 2008 | H8: 3800
B9: 정수기 | C9: 여 | D9: 사원 | E9: 대학원졸 | F9: 컴퓨터활용능력 | G9: 2011 | H9: 2500
A10: 영업부 | B10: 신수학 | C10: 여 | D10: 과장 | E10: 대졸 | F10: 워드프로세서 | G10: 2006 | H10: 4400
B11: 최첨단 | C11: 남 | D11: 대리 | E11: 고졸 | F11: 컴퓨터활용능력 | G11: 2009 | H11: 3600
B12: 박두식 | C12: 남 | D12: 사원 | E12: 대졸 | F12: 정보처리 | G12: 2013 | H12: 2000

Sheet 기본작업-3
A1: 아파트 분양가 분석 현황
A3: 위치 | B3: 아파트명 | C3: 구분 | D3: 전용면적 | E3: 세대수 | F3: 분양가(3.3㎡당)
A4: 서울 | B4: 자이야 | C4: 일반 | D4: 148㎡ | E4: 600 | F4: 15000000
A5: 서울 | B5: 푸르자나 | C5: 일반 | D5: 85㎡ | E5: 1000 | F5: 10000000
A6: 서울 | B6: LH | C6: 임대 | D6: 101㎡ | E6: 1500 | F6: 8000000
A7: 경기 | B7: 좀편한세상 | C7: 일반 | D7: 148㎡ | E7: 800 | F7: 10000000
A8: 경기 | B8: 아이파크 | C8: 일반 | D8: 85㎡ | E8: 1500 | F8: 8000000
A9: 경기 | B9: LH | C9: 임대 | D9: 101㎡ | E9: 2000 | F9: 6000000
A10: 인천 | B10: 아이파크 | C10: 일반 | D10: 148㎡ | E10: 500 | F10: 10000000
A11: 인천 | B11: 자이야 | C11: 일반 | D11: 85㎡ | E11: 800 | F11: 7500000
A12: 인천 | B12: LH | C12: 임대 | D12: 101㎡ | E12: 1000 | F12: 5500000
A13: 대전 | B13: 좀편한세상 | C13: 일반 | D13: 148㎡ | E13: 700 | F13: 8000000
A14: 대전 | B14: 푸르자나 | C14: 일반 | D14: 85㎡ | E14: 1300 | F14: 7000000
A15: 대전 | B15: LH | C15: 임대 | D15: 101㎡ | E15: 1400 | F15: 5000000

Sheet 계산작업
A1: [표1] | B1: 중간고사 성적표 | H1: [표2] | I1: 제품판매현황
A2: 성명 | B2: 성별 | C2: 국어 | D2: 영어 | E2: 수학 | F2: 총점 | H2: 제품코드 | I2: 대리점 | J2: 판매량 | K2: 재고량 | L2: 총판매액 | N2: <판매가표>
A3: 이용해 | B3: 여 | C3: 88 | D3: 89 | E3: 90 | F3: =SUM(C3:E3) -> 267 | H3: C-823 | I3: 마포 | J3: 65 | K3: 35 | L3: =J3*VLOOKUP(LEFT(H3,1),$N$3:$O$6,2,FALSE) -> 52000000 | N3: 코드 | O3: 판매가
A4: 왕고집 | B4: 남 | C4: 79 | D4: 85 | E4: 69 | F4: =SUM(C4:E4) -> 233 | H4: C-823 | I4: 강남 | J4: 80 | K4: 20 | L4: =J4*VLOOKUP(LEFT(H4,1),$N$3:$O$6,2,FALSE) -> 64000000 | N4: C | O4: 800000
A5: 안면상 | B5: 여 | C5: 92 | D5: 90 | E5: 89 | F5: 271 | H5: C-823 | I5: 노원 | J5: 77 | K5: 23 | L5: 61600000 | N5: W | O5: 950000
A6: 경운기 | B6: 남 | C6: 94 | D6: 95 | E6: 89 | F6: 278 | H6: R-121 | I6: 마포 | J6: 61 | K6: 39 | L6: 73200000 | N6: R | O6: 1200000
A7: 김치국 | B7: 남 | C7: 86 | D7: 93 | E7: 90 | F7: 269 | H7: R-121 | I7: 강남 | J7: 82 | K7: 18 | L7: 98400000
A8: 오지람 | B8: 여 | C8: 90 | D8: 95 | E8: 92 | F8: 277 | H8: R-121 | I8: 노원 | J8: 74 | K8: 26 | L8: 88800000
A9: 최고운 | B9: 여 | C9: 88 | D9: 84 | E9: 80 | F9: 252 | H9: W-118 | I9: 마포 | J9: 73 | K9: 27 | L9: 69350000
A10: 남달리 | B10: 남 | C10: 77 | D10: 80 | E10: 79 | F10: 236 | H10: W-118 | I10: 강남 | J10: 86 | K10: 14 | L10: 81700000
A11: 오심판 | B11: 남 | C11: 80 | D11: 85 | E11: 90 | F11: 255 | H11: W-118 | I11: 노원 | J11: 89 | K11: 11 | L11: 84550000
A13: 성별 | B13: 영어 | C13: 수학 | D13: 조건에 맞는 학생의 총점 평균 | H13: [표4] | I13: 수영장 회원 현황
A14: 남 | B14: >=90 | D14: =ROUND(DAVERAGE(A2:F11,6,A13:C15),1) -> 272.8 | H14: 회원코드 | I14: 성명 | J14: 성별 | K14: 수강요일 | L14: 주민등록번호
A15: 여 | C15: >=90 | H15: SE-501 | I15: 정보훈 | J15: =CHOOSE(MID(L15,8,1),"남","여","남","여") -> 남 | K15: 월, 수 | L15: 890621-1******
H16: SE-502 | I16: 김우유 | J16: =CHOOSE(MID(L16,8,1),"남","여","남","여") -> 여 | K16: 월, 수 | L16: 910508-2******
A17: [표3] | B17: 1/4분기 매출결과 | F17: 단위 : 만원 | H17: SE-503 | I17: 한효연 | J17: 남 | K17: 월, 수 | L17: 890731-1******
A18: 도서코드 | B18: 구분 | C18: 1월 | D18: 2월 | E18: 3월 | F18: 결과 | H18: SE-504 | I18: 김만복 | J18: 남 | K18: 월, 수 | L18: 881001-1******
A19: IT-25 | B19: 수험서 | C19: 6500 | D19: 7560 | E19: 8020 | F19: =IF(AND(C19>=AVERAGE($C$19:$C$26),D19>=AVERAGE($D$19:$D$26),E19>=AVERAGE($E$19:$E$26)),"효자도서","") ->  | H19: SE-505 | I19: 김민주 | J19: 여 | K19: 월, 수 | L19: 951212-2******
A20: EC-60 | B20: 경제/경영 | C20: 8620 | D20: 7925 | E20: 7620 | F20: =IF(AND(C20>=AVERAGE($C$19:$C$26),D20>=AVERAGE($D$19:$D$26),E20>=AVERAGE($E$19:$E$26)),"효자도서","") ->  | H20: SE-506 | I20: 성인수 | J20: 여 | K20: 월, 수 | L20: 900816-2******
A21: RF-10 | B21: 교양 | C21: 8802 | D21: 8357 | E21: 8687 | F21: 효자도서 | H21: SE-507 | I21: 유재명 | J21: 남 | K21: 화, 목 | L21: 011115-3******
A22: FT-41 | B22: 소설 | C22: 7896 | D22: 7900 | E22: 8240 | H22: SE-508 | I22: 최미영 | J22: 남 | K22: 화, 목 | L22: 000507-3******
A23: HB-49 | B23: 취미 | C23: 8438 | D23: 8320 | E23: 8345 | F23: 효자도서 | H23: SE-509 | I23: 강신국 | J23: 여 | K23: 화, 목 | L23: 010909-4******
A24: HT-33 | B24: 건강 | C24: 6874 | D24: 7000 | E24: 7320 | H24: SE-510 | I24: 임미희 | J24: 여 | K24: 화, 목 | L24: 010227-4******
A25: PC-52 | B25: 컴퓨터 | C25: 8576 | D25: 7982 | E25: 8800 | H25: SE-511 | I25: 나영식 | J25: 남 | K25: 화, 목 | L25: 021026-3******
A26: TV-77 | B26: 여행 | C26: 9318 | D26: 8972 | E26: 9200 | F26: 효자도서 | H26: SE-512 | I26: 이원해 | J26: 여 | K26: 화, 목 | L26: 000411-4******
A28: [표5] | B28: 승진심사 결과표
A29: 성명 | B29: 성별 | C29: 부서 | D29: 근태 | E29: 시험 | F29: 승진여부 | H29: 여사원 승진자 수
A30: 전기판 | B30: 남 | C30: 영업부 | D30: 90 | E30: 94 | F30: 승진 | H30: =COUNTIFS(B30:B38,"여",F30:F38,"승진")&"명" -> 2명
A31: 백수인 | B31: 여 | C31: 경리부 | D31: 84 | E31: 67
A32: 공양미 | B32: 여 | C32: 제작부 | D32: 92 | E32: 95 | F32: 승진
A33: 이나중 | B33: 남 | C33: 경리부 | D33: 93 | E33: 94 | F33: 승진
A34: 배사공 | B34: 남 | C34: 영업부 | D34: 81 | E34: 57
A35: 이용자 | B35: 여 | C35: 제작부 | D35: 76 | E35: 82
A36: 신주사 | B36: 여 | C36: 제작부 | D36: 94 | E36: 92 | F36: 승진
A37: 임신중 | B37: 여 | C37: 영업부 | D37: 57 | E37: 91
A38: 이대로 | B38: 남 | C38: 경리부 | D38: 92 | E38: 99 | F38: 승진

Sheet 분석작업-2
A1: 동호회 회원 현황
A3: 지역 | B3: 성명 | C3: 성별 | D3: 나이 | E3: 직업 | F3: 연락처 | G3: 기부금
A4: 충북 | B4: 현도용 | C4: 남 | D4: 42 | E4: 대학교수 | F4: 010-3214-6987 | G4: 350000
A5: 충북 | B5: 전용택 | C5: 남 | D5: 30 | E5: 회사원 | F5: 010-6757-2121 | G5: 300000
A6: 충북 | B6: 장수옥 | C6: 여 | D6: 32 | E6: 회계사 | F6: 010-5798-3127 | G6: 350000
A7: 충북 요약 | G7: =SUBTOTAL(9,G4:G6) -> 1000000
A8: 충북 최대 | D8: =SUBTOTAL(4,D4:D6) -> 42
A9: 서울 | B9: 한동호 | C9: 남 | D9: 35 | E9: 회사원 | F9: 010-6547-3274 | G9: 250000
A10: 서울 | B10: 무진장 | C10: 남 | D10: 45 | E10: 대학교수 | F10: 010-3355-6674 | G10: 250000
A11: 서울 | B11: 우양아 | C11: 여 | D11: 24 | E11: 대학생 | F11: 010-2178-2008 | G11: 120000
A12: 서울 | B12: 전대용 | C12: 남 | D12: 28 | E12: 자영업 | F12: 010-9357-9956 | G12: 600000
A13: 서울 요약 | G13: =SUBTOTAL(9,G9:G12) -> 1220000
A14: 서울 최대 | D14: =SUBTOTAL(4,D9:D12) -> 45
A15: 부산 | B15: 조금만 | C15: 남 | D15: 31 | E15: 회사원 | F15: 010-3247-5665 | G15: 200000
A16: 부산 | B16: 강도인 | C16: 남 | D16: 29 | E16: 자영업 | F16: 010-3547-8222 | G16: 380000
A17: 부산 | B17: 유인원 | C17: 남 | D17: 41 | E17: 회사원 | F17: 010-3617-5744 | G17: 200000
A18: 부산 요약 | G18: =SUBTOTAL(9,G15:G17) -> 780000
A19: 부산 최대 | D19: =SUBTOTAL(4,D15:D17) -> 41
A20: 대전 | B20: 고기주 | C20: 여 | D20: 34 | E20: 자영업 | F20: 010-9374-5274 | G20: 300000
A21: 대전 | B21: 허수리 | C21: 여 | D21: 34 | E21: 변호사 | F21: 010-7827-1610 | G21: 400000
A22: 대전 | B22: 감사용 | C22: 남 | D22: 27 | E22: 대학생 | F22: 010-3274-1092 | G22: 100000
A23: 대전 요약 | G23: =SUBTOTAL(9,G20:G22) -> 800000
A24: 대전 최대 | D24: =SUBTOTAL(4,D20:D22) -> 34
A25: 경기 | B25: 김만우 | C25: 남 | D25: 28 | E25: 대학생 | F25: 010-3488-3541 | G25: 100000
A26: 경기 | B26: 고향이 | C26: 여 | D26: 33 | E26: 의사 | F26: 010-3574-7257 | G26: 500000
A27: 경기 | B27: 선구안 | C27: 여 | D27: 29 | E27: 자영업 | F27: 010-6279-2918 | G27: 550000
A28: 경기 | B28: 이리온 | C28: 여 | D28: 34 | E28: 회사원 | F28: 010-4698-1007 | G28: 250000
A29: 경기 요약 | G29: =SUBTOTAL(9,G25:G28) -> 1400000
A30: 경기 최대 | D30: =SUBTOTAL(4,D25:D28) -> 34
A31: 총합계 | G31: =SUBTOTAL(9,G4:G28) -> 5200000
A32: 전체 최대값 | D32: =SUBTOTAL(4,D4:D28) -> 45

Sheet 분석작업-1
A1: 통조림 가공생산 현황
A3: 생산코드 | B3: 생산일 | C3: 가공팀 | D3: 가공품명 | E3: 생산원가 | F3: 생산수량 | G3: 불량율 | H3: 목표매출액
A4: 35-T-01 | B4: 2023-01-15 | C4: 가공1팀 | D4: 참치 | E4: 980 | F4: 100000 | G4: 0.0091 | H4: =F4*E4+(E4*F4)*35% -> 132300000
A5: 12-P-01 | B5: 2023-02-04 | C5: 가공1팀 | D5: 파인애플 | E5: 540 | F5: 110000 | G5: 0.0065 | H5: =F5*E5+(E5*F5)*35% -> 80190000
A6: 90-C-01 | B6: 2023-01-16 | C6: 가공1팀 | D6: 닭가슴살 | E6: 700 | F6: 135000 | G6: 0.0053 | H6: 127575000
A7: 48-S-01 | B7: 2023-01-05 | C7: 가공1팀 | D7: 꽁치 | E7: 980 | F7: 120000 | G7: 0.0054 | H7: 158760000
A8: 35-T-02 | B8: 2023-01-19 | C8: 가공2팀 | D8: 참치 | E8: 540 | F8: 135000 | G8: 0.0058 | H8: 98415000
A9: 12-P-02 | B9: 2023-02-08 | C9: 가공2팀 | D9: 파인애플 | E9: 700 | F9: 120000 | G9: 0.0088 | H9: 113400000
A10: 90-C-02 | B10: 2023-01-21 | C10: 가공2팀 | D10: 닭가슴살 | E10: 980 | F10: 125000 | G10: 0.0076 | H10: 165375000
A11: 48-S-02 | B11: 2023-02-11 | C11: 가공2팀 | D11: 꽁치 | E11: 540 | F11: 125000 | G11: 0.005 | H11: 91125000
A12: 35-T-03 | B12: 2023-02-15 | C12: 가공3팀 | D12: 참치 | E12: 700 | F12: 115000 | G12: 0.0047 | H12: 108675000
A13: 12-P-03 | B13: 2023-02-24 | C13: 가공3팀 | D13: 파인애플 | E13: 980 | F13: 100000 | G13: 0.009 | H13: 132300000
A14: 90-C-03 | B14: 2023-02-13 | C14: 가공3팀 | D14: 닭가슴살 | E14: 540 | F14: 115000 | G14: 0.0057 | H14: 83835000
A15: 48-S-03 | B15: 2023-01-17 | C15: 가공3팀 | D15: 꽁치 | E15: 700 | F15: 120000 | G15: 0.0054 | H15: 113400000
A18: 가공품명 | B18: (모두)
A20: 평균 : 목표매출액 | B20: 열 레이블
A21: 행 레이블 | B21: 가공1팀 | C21: 가공2팀 | D21: 가공3팀
A22: 1월 | B22: 139545000 | C22: 131895000 | D22: 113400000
A23: 2월 | B23: 80190000 | C23: 102262500 | D23: 108270000
A24: 총합계 | B24: 124706250 | C24: 117078750 | D24: 109552500

Sheet 매크로작업
A1: 4월 카드 사용 내역
A3: 사용일자 | B3: 사용가맹점 | C3: 할부기간 | D3: 사용금액 | E3: 할인금액 | F3: 결제금액
A4: 2022-04-05 | B4: 서울바게트 | D4: 15000 | F4: =D4-E4 -> 15000
A5: 2022-04-08 | B5: 디마트(마포) | C5: 3 | D5: 98000 | E5: 5000 | F5: =D5-E5 -> 93000
A6: 2022-04-10 | B6: 로우마트 | C6: 12 | D6: 1200000 | F6: 1200000
A7: 2022-04-12 | B7: 상공의원 | D7: 4800 | F7: 4800
A8: 2022-04-13 | B8: 상공주유소 | D8: 70000 | E8: 3500 | F8: 66500
A9: 2022-04-18 | B9: 축산물전문점 | D9: 56000 | F9: 56000
A10: 2022-04-21 | B10: 맛나식당 | D10: 99000 | E10: 9900 | F10: 89100
A11: 2022-04-22 | B11: 영화박스 | D11: 30000 | F11: 30000
A12: 2022-04-25 | B12: 상공주유소 | D12: 80000 | E12: 4000 | F12: 76000
A13: 2022-04-26 | B13: 디마트(마포) | C13: 3 | D13: 132000 | E13: 5000 | F13: 127000
A14: 2022-04-29 | B14: TV홈쇼핑 | C14: 6 | D14: 180000 | E14: 5000 | F14: 175000
A15: 합계 | D15: =SUM(D4:D14) -> 1964800 | E15: =SUM(E4:E14) -> 32400 | F15: 1932400

Sheet 차트작업
A1: 우리나라 수출현황
A3: 품명 | B3: 수출지역 | C3: 수출단가 | D3: 수출량 | E3: 수출총액
A4: 스마트폰 | B4: 북아메리카 | C4: 720000 | D4: 3400 | E4: =C4*D4 -> 2448000000
A5: 냉장고 | B5: 남아메리카 | C5: 1340000 | D5: 2500 | E5: =C5*D5 -> 3350000000
A6: 자동차 | B6: 아시아 | C6: 24000000 | D6: 1000 | E6: 24000000000
A7: 석유제품 | B7: 오세아니아 | C7: 600000 | D7: 2800 | E7: 1680000000
A8: 컴퓨터 | B8: 유럽 | C8: 850000 | D8: 3000 | E8: 2550000000
A9: 섬유 | B9: 중동 | C9: 500000 | D9: 3200 | E9: 1600000000
A10: 3D TV | B10: 아프리카 | C10: 1200000 | D10: 2800 | E10: 3360000000
